Workbook

Sheet OPERATIVE
A1: sales | B1: EI | C1: BI | D1: prod | I1: sales budget
A2: 700 | B2: 120 | C2: 120 | D2: =A2+B2-C2 -> 700 | F2: WE DO NOT HAVE | I2: V | J2: p per unit
A3: 4800 | B3: 1100 | C3: 850 | D3: =A3+B3-C3 -> 5050 | F3: ANY CONSTRAINTS OR LIMITING FACTORS | I3: 700 | J3: 90 | K3: =I3*J3 -> 63000
A4: 600 | B4: 80 | C4: 200 | D4: 480 | F4: WE ASSUME THAT PRODUCTION PLAN AS DERIVED BY SALES BUDGET IS FEASIBLE | I4: 4800 | J4: 12.75 | K4: =I4*J4 -> 61200
A5: 1400 | B5: 250 | C5: 380 | D5: 1270 | I5: 600 | J5: 25 | K5: 15000
I6: 1400 | J6: 58 | K6: 81200
C7: raw mat consumption for production | K7: =SUM(K3:K6) -> 220400
B8: prod | C8: st ph kg | D8: p | E8: tot kg | F8: tot value
A9: A | B9: 700 | C9: 5 | D9: 2.1 | E9: =B9*C9 -> 3500 | F9: =C9*D9*C18 -> 7350
A10: B | B10: 5050 | C10: 1.3 | D10: 2.1 | E10: =B10*C10 -> 6565 | F10: =C10*D10*C19 -> 13786.5
A11: C | B11: 480 | C11: 4 | D11: 2.1 | E11: 1920 | F11: =C11*D11*C20 -> 4032
A12: D | B12: 1270 | C12: 2.8 | D12: 2.1 | E12: 3556 | F12: =C12*D12*C21 -> 7467.6
B13: cons | C13: EI | D13: BI | E13: =SUM(E9:E12) -> 15541 | F13: =SUM(F9:F12) -> 32636.1 | G13: tot cons
A14: purchases | B14: =E13 -> 15541 | C14: 850 | D14: 1200 | E14: =B14+C14-D14 -> 15191 | F14: =E14*D9 -> 31901.1 | G14: tot purchases
E15: LOWER BECAUSE BI >EI
C16: direct labour budet
A17: P | B17: SALES | C17: production | D17: phisical std | F17: h tot | G17: p st | H17: tot costs | J17: total fixed costs
A18: 90 | B18: 700 | C18: 700 | D18: 3.2 | F18: =C18*D18 -> 2240 | G18: 16.2 | H18: =F18*G18 -> 36288
A19: 12.75 | B19: 4800 | C19: 5050 | D19: 0.4 | F19: =C19*D19 -> 2020 | G19: 14.4 | H19: =F19*G19 -> 29088
A20: 25 | B20: 600 | C20: 480 | D20: 0.8 | F20: =C20*D20 -> 384 | G20: 14.4 | H20: =F20*G20 -> 5529.6
A21: 58 | B21: 1400 | C21: 1270 | D21: 2.4 | F21: =C21*D21 -> 3048 | G21: 16.2 | H21: =F21*G21 -> 49377.6
F22: =SUM(F18:F21) -> 7692 | H22: =SUM(H18:H21) -> 120283.2 | J22: 40000
C24: budget production variable costs
C25: =F13+H22 -> 152919.3 | D25: SUM OF RAW MATERIAL CONSUMPTION AND DIRECT LABOR
B27: ??? | C27: COGS | D27: variable approach | E27: FULL APPROACH | G27: =C25+(J34-K34)*I34+(J35-K35)*I35+(J36-K36)*I36+(J37-K37)*I37 -> 159006 | I27: full approach | J27: =O34*B18+O35*B19+O36*B20+O37*B21 -> 200607.6641 | L27: VERIFY THAT IS EQUAL TO FCU MULTIPLIED BY SALES
C28: consumption RM | D28: + | E28: consumption RM | F28: + | I28: =C25+J22+(J34-K34)*O34+(J35-K35)*O35+(J36-K36)*O36+ (J37-K37)*O37 -> 200607.6641
C29: labour | D29: + | E29: labour | F29: +
C30: (BI-EI)*CVU | E30: FIXED COSTS | G30: VERIFY THAT IS EQUAL TO CVU MULTIPLIED BY SALES
E31: (BI-EI)*FCU
G32: =I34*B18+I35*B19+I36*B20+I37*B21 -> 159006
D33: pstRM | F33: pstRM | G33: q st | H33: p st | I33: CVU | J33: BI | K33: EI | L33: SHARE OF FIXED COSTS | M33: SHARE PER UNIT | N33: SHARE PER UNIT | O33: FULL COST PER UNIT
C34: A | D34: 5 | F34: 2.1 | G34: 3.2 | H34: 16.2 | I34: =(D34*F34)+(G34*H34) -> 62.34 | J34: 120 | K34: 120 | L34: =($J$22/$F$22)*F18 -> 11648.46594 | M34: =L34/C18 -> 16.64066563 | N34: =($J$22/$F$22)*D18 -> 16.64066563 | O34: =I34+M34 -> 78.98066563
C35: B | D35: 1.3 | F35: 2.1 | G35: 0.4 | H35: 14.4 | I35: =(D35*F35)+(G35*H35) -> 8.49 | J35: 850 | K35: 1100 | L35: =($J$22/$F$22)*F19 -> 10504.42018 | M35: =L35/C19 -> 2.080083203 | N35: =($J$22/$F$22)*D19 -> 2.080083203 | O35: =I35+M35 -> 10.5700832
C36: C | D36: 4 | F36: 2.1 | G36: 0.8 | H36: 14.4 | I36: =(D36*F36)+(G36*H36) -> 19.92 | J36: 200 | K36: 80 | L36: =($J$22/$F$22)*F20 -> 1996.879875 | M36: =L36/C20 -> 4.160166407 | N36: =($J$22/$F$22)*D20 -> 4.160166407 | O36: =I36+M36 -> 24.08016641
C37: D | D37: 2.8 | F37: 2.1 | G37: 2.4 | H37: 16.2 | I37: =(D37*F37)+(G37*H37) -> 44.76 | J37: 380 | K37: 250 | L37: =($J$22/$F$22)*F21 -> 15850.23401 | M37: =L37/C21 -> 12.48049922 | N37: =($J$22/$F$22)*D21 -> 12.48049922 | O37: =I37+M37 -> 57.24049922
L38: =SUM(L34:L37) -> 40000

Sheet P AND L
A1: DIRECT | B1: A | C1: B | D1: C | E1: D | F1: TOT
A2: SALES | B2: =OPERATIVE!K3 -> 63000 | C2: =OPERATIVE!K4 -> 61200 | D2: =OPERATIVE!K5 -> 15000 | E2: =OPERATIVE!K6 -> 81200 | F2: =SUM(B2:E2) -> 220400
A3: variable COGS
A4: RM consumption | B4: =OPERATIVE!F9 -> 7350 | C4: =OPERATIVE!F10 -> 13786.5 | D4: =OPERATIVE!F11 -> 4032 | E4: =OPERATIVE!F12 -> 7467.6 | F4: =SUM(B4:E4) -> 32636.1
A5: labour | B5: =OPERATIVE!H18 -> 36288 | C5: =OPERATIVE!H19 -> 29088 | D5: =OPERATIVE!H20 -> 5529.6 | E5: =OPERATIVE!H21 -> 49377.6 | F5: =SUM(B5:E5) -> 120283.2
A6: BI-EI | B6: =(OPERATIVE!J34-OPERATIVE!K34)*OPERATIVE!I34 -> 0 | C6: =(OPERATIVE!J35-OPERATIVE!K35)*OPERATIVE!I35 -> -2122.5 | D6: =(OPERATIVE!J36-OPERATIVE!K36)*OPERATIVE!I36 -> 2390.4 | E6: =(OPERATIVE!J37-OPERATIVE!K37)*OPERATIVE!I37 -> 5818.8 | F6: =SUM(B6:E6) -> 6086.7
A7: TOT COCG | B7: =B4+B5+B6 -> 43638 | C7: =C4+C5+C6 -> 40752 | D7: =D4+D5+D6 -> 11952 | E7: =E4+E5+E6 -> 62664 | F7: =F4+F5+F6 -> 159006
A8: CONTRIBUTION MAR | B8: =B2-B7 -> 19362 | C8: =C2-C7 -> 20448 | D8: =D2-D7 -> 3048 | E8: =E2-E7 -> 18536 | F8: =F2-F7 -> 61394
A9: COMMON FIXED COSTS | F9: 40000
A10: NET OP MARGIN | F10: =F8-F9 -> 21394
A12: FULL | B12: A | C12: B | D12: C | E12: D | F12: TOT
B13: 63000 | C13: 61200 | D13: 15000 | E13: 81200 | F13: 220400
A14: FULL COGS
A15: RM consumption | B15: 7350 | C15: 13786.5 | D15: 4032 | E15: 7467.6 | F15: 32636.1
A16: labour | B16: 36288 | C16: 29088 | D16: 5529.6 | E16: 49377.6 | F16: 120283.2
A17: FIXED COSTS (SHARE) | B17: =OPERATIVE!L34 -> 11648.46594 | C17: =OPERATIVE!L35 -> 10504.42018 | D17: =OPERATIVE!L36 -> 1996.879875 | E17: =OPERATIVE!L37 -> 15850.23401 | F17: =SUM(B17:E17) -> 40000
A18: BI-EI | B18: =(OPERATIVE!J34-OPERATIVE!K34)*OPERATIVE!O34 -> 0 | C18: =(OPERATIVE!J35-OPERATIVE!K35)*OPERATIVE!O35 -> -2642.520801 | D18: =(OPERATIVE!J36-OPERATIVE!K36)*OPERATIVE!O36 -> 2889.619969 | E18: =(OPERATIVE!J37-OPERATIVE!K37)*OPERATIVE!O37 -> 7441.264899 | F18: =SUM(B18:E18) -> 7688.364067 | I18: =C6-C18 -> 520.0208008
A19: TOT COCG | B19: =SUM(B15:B18) -> 55286.46594 | C19: =SUM(C15:C18) -> 50736.39938 | D19: =SUM(D15:D18) -> 14448.09984 | E19: =SUM(E15:E18) -> 80136.69891 | F19: =SUM(B19:E19) -> 200607.6641
A20: GROSS IND MARGIN | B20: =B13-B19 -> 7713.534061 | C20: =C13-C19 -> 10463.60062 | D20: =D13-D19 -> 551.900156 | E20: =E13-E19 -> 1063.301092 | F20: =SUM(B20:E20) -> 19792.33593
A21: NET OP MARGIN
A23: INCOME VARIANCE | B23: =F10-F20 -> 1601.664067 | C23: =C18-C6 -> -520.0208008 | D23: full REDUCES COSTS MORE THAN DIRECT | I23: FULL BETTER!
A24: direct VS full | B24: in fav DIR | C24: =D18-D6 -> 499.2199688 | D24: full INCREASES COSTS MORE THAN DIRECT | I24: DIRECT BETTER!
C25: =E18-E6 -> 1622.464899 | D25: full INCREASES COSTS MORE THAN DIRECT | I25: DIRECT BETTER!
C26: =SUM(C23:C25) -> 1601.664067
L27: A IRRILEVANT
C28: EI > BI | D28: WITH FULL HIGHER NET OP BECAUSE WE DEFER MORE COSTS | L28: ONLY FOR B PRODUCT
C29: EI < BI | D29: WITH DIRECT HIGHER OP INCOME BECAUSE WE UPLOAD LOWER COSTS | L29: C AND D
A31: FULL VS DIRECT
A32: with full, manager can be demotivated if allocation of fixed costs does not follow correct rules (in the sense that allocation does not reflect the use of common resources)
A33: on the other hand, he can be stimulated/encouraged to produce more and more units (even though un-sold) because by postponing costs of unsold units (higher value with full) net operating income increases

Sheet LIMITING FACTOR
A1: what happens with limiting factors?
A2: VERIFY FEASIBILITY
A4: NOTE THAT PRICE OF B IS LOWER AND SALES HIGHER
A6: production plan as derived by sales
A7: sales | B7: ei | C7: bi | D7: production
A8: 700 | B8: 120 | C8: 120 | D8: =A8+B8-C8 -> 700 | E8: A
A9: 6000 | B9: 1100 | C9: 850 | D9: =A9+B9-C9 -> 6250 | E9: B
A10: 600 | B10: 80 | C10: 200 | D10: 480 | E10: C
A11: 1400 | B11: 250 | C11: 380 | D11: 1270 | E11: D
A14: required hours
A16: st
A17: 3.2 | B17: =A17*D8 -> 2240
A18: 0.4 | B18: =A18*D9 -> 2500
A19: 0.8 | B19: 384
A20: 2.4 | B20: 3048
B21: =SUM(B17:B20) -> 8172 | C21: > | D21: 8000 | E21: available
A23: what can we do? How can we choose among different products?
A24: a way to take decision is to employ the production capacity in the more convenient products selected on the basis of CONTRIBUTION MARGIN PER LIMITING FACTOR.
A25: IT' S A WAY TO DEFINE THE OPTIMAL PRODUCTION MIX WHEN PRODUCTION IS CONSTRAINED BY A SCARCE RESOURCE
A27: CALCULATION OF CONTRIBUTION MARGIN (PER UNIT) PER LIMITING FACTORS
B28: P | C28: p st RM | D28: st q RM | E28: pst Lab | F28: st q Lab | G28: C m per unit | H28: Cm per unit per limiting factor (1 hour of direct labour) | I28: order
A29: A | B29: 90 | C29: 2.1 | D29: 5 | E29: 16.2 | F29: 3.2 | G29: =B29- (C29*D29)-(E29*F29) -> 27.66 | H29: =G29/F29 -> 8.64375 | I29: 2
A30: B | B30: 12 | C30: 2.1 | D30: 1.3 | E30: 14.4 | F30: 0.4 | G30: =B30- (C30*D30)-(E30*F30) -> 3.51 | H30: =G30/F30 -> 8.775 | I30: 1
A31: C | B31: 25 | C31: 2.1 | D31: 4 | E31: 14.4 | F31: 0.8 | G31: 5.08 | H31: 6.35 | I31: 3
A32: D | B32: 58 | C32: 2.1 | D32: 2.8 | E32: 16.2 | F32: 2.4 | G32: 13.24 | H32: 5.516666667 | I32: 4
H35: 0,4 h of labor per 1 product
H36: in 1 hour of labour means 2, 5 products
H37: =3.51/0.4 -> 8.775 | I37: =3.51*2.5 -> 8.775
H38: contribution margin per limiting factor:
H39: contribution margin per unit of product DIVIDED BY h of labor (limiting factor) USED per each product
H40: contribution margin per unit of product MULTIPLIED BY products producted in 1 hour of labor (limiting factor)
A42: production plan feasible and convenient | E42: WE RE-DEFINE SALES
B43: production | C43: sales | D43: h employed | H43: =8000-8172 -> -172 | I43: not available | K43: give up | L43: =172/2.4 -> 71.66666667 | M43: about 72 units of D
A44: B | B44: 6250 | C44: 6000 | D44: 2500 | L44: hours not availble/h employed per each D unit
A45: A | B45: 700 | C45: 700 | D45: 2240 | M45: st q Lab | N45: 2,4 per each D
A46: C | B46: 480 | C46: 600 | D46: 384
A47: D | B47: =D11-72 -> 1198 | C47: =H50 -> 1328 | D47: =B47*2.4 -> 2875.2
D48: =SUM(D44:D47) -> 7999.2
C49: SALES | D49: PRODUCTION | F49: +BI | G49: -EI
C50: ? | D50: 1198 | F50: 380 | G50: 250 | H50: =D50+F50-G50 -> 1328
